[Event "*** Titled Tuesday Blitz"]
[Site "Chess.com"]
[Date "2020.10.20"]
[Round "8"]
[White "vladgoncharov"]
[Black "MalyDominator"]
[Result "1-0"]
[WhiteElo "2504"]
[BlackElo "2369"]
[TimeControl "180+1"]
[EndTime "11:36:48 PDT"]
[Termination "vladgoncharov won by checkmate"]

1. d4 {[%clk 0:02:06.1]} 1... Nf6 {[%clk 0:02:58.7]} 2. c4 {[%clk 0:02:05.4]}
2... g6 {[%clk 0:02:57.4]} 3. Nc3 {[%clk 0:02:05.9]} 3... Bg7 {[%clk 0:02:56.8]}
4. e4 {[%clk 0:02:05.3]} 4... d6 {[%clk 0:02:57.2]} 5. Be2 {[%clk 0:02:06]} 5...
O-O {[%clk 0:02:57.1]} 6. Nf3 {[%clk 0:02:06.6]} 6... e5 {[%clk 0:02:56]} 7. O-O
{[%clk 0:02:07.2]} 7... Nc6 {[%clk 0:02:56.1]} 8. d5 {[%clk 0:02:07.8]} 8... Ne7
{[%clk 0:02:55.3]} 9. Ne1 {[%clk 0:02:08.3]} 9... Nd7 {[%clk 0:02:55]} 10. Be3
{[%clk 0:02:08.9]} 10... f5 {[%clk 0:02:55.3]} 11. f3 {[%clk 0:02:09.6]} 11...
Kh8 {[%clk 0:02:53.1]} 12. Rc1 {[%clk 0:02:06.1]} 12... f4 {[%clk 0:02:52.8]}
13. Bf2 {[%clk 0:02:05.9]} 13... g5 {[%clk 0:02:53.1]} 14. c5 {[%clk 0:02:03.9]}
14... Nxc5 {[%clk 0:02:52]} 15. b4 {[%clk 0:02:03.6]} 15... Na6 {[%clk 0:02:52]}
16. Nb5 {[%clk 0:02:04.1]} 16... Ng6 {[%clk 0:02:46.6]} 17. a3 {[%clk
0:02:03.9]} 17... Bd7 {[%clk 0:02:33.9]} 18. Qc2 {[%clk 0:02:00.3]} 18... h5
{[%clk 0:02:08.3]} 19. Nxa7 {[%clk 0:01:59.4]} 19... g4 {[%clk 0:02:06.7]} 20.
Nb5 {[%clk 0:01:53.1]} 20... g3 {[%clk 0:02:01.7]} 21. hxg3 {[%clk 0:01:52.4]}
21... fxg3 {[%clk 0:02:01.4]} 22. Bxg3 {[%clk 0:01:52.6]} 22... Qg5 {[%clk
0:02:01.1]} 23. Bh2 {[%clk 0:01:49]} 23... Bh6 {[%clk 0:01:34.7]} 24. Rb1 {[%clk
0:01:41.2]} 24... Nf4 {[%clk 0:01:32.1]} 25. Kh1 {[%clk 0:01:40.5]} 25... h4
{[%clk 0:01:28.7]} 26. Nc3 {[%clk 0:01:25.7]} 26... Nh5 {[%clk 0:01:24.6]} 27.
Nd1 {[%clk 0:01:12.3]} 27... Rg8 {[%clk 0:01:10.6]} 28. Bxa6 {[%clk 0:01:04.9]}
28... bxa6 {[%clk 0:00:57.6]} 29. Qxc7 {[%clk 0:01:04.5]} 29... Ng3+ {[%clk
0:00:56.6]} 30. Kg1 {[%clk 0:01:04.1]} 30... Ne2+ {[%clk 0:00:18.5]} 31. Kf2
{[%clk 0:00:57]} 31... Qd2 {[%clk 0:00:17]} 32. Rb2 {[%clk 0:00:54.5]} 32...
Qd4+ {[%clk 0:00:14.6]} 33. Kxe2 {[%clk 0:00:52.9]} 33... Bb5+ {[%clk
0:00:14.9]} 34. Nd3 {[%clk 0:00:46.3]} 34... Bxd3+ {[%clk 0:00:10.9]} 35. Ke1
{[%clk 0:00:40.6]} 35... Bxf1 {[%clk 0:00:10.9]} 36. Qxd6 {[%clk 0:00:34.9]}
36... Bg7 {[%clk 0:00:09.2]} 37. Rd2 {[%clk 0:00:32.4]} 37... Qc4 {[%clk
0:00:05.6]} 38. Bxe5 {[%clk 0:00:32]} 38... Bxg2 {[%clk 0:00:04.8]} 39. Qh6#
{[%clk 0:00:31.4]} 1-0

[Event "*** Titled Tuesday Blitz"]
[Site "Chess.com"]
[Date "2020.10.20"]
[Round "8"]
[White "ChronicUnhappiness"]
[Black "MVM2008"]
[Result "0-1"]
[WhiteElo "2260"]
[BlackElo "2156"]
[TimeControl "180+1"]
[EndTime "11:36:50 PDT"]
[Termination "MVM2008 won by resignation"]

1. c4 {[%clk 0:03:00.9]} 1... c6 {[%clk 0:02:54.5]} 2. Nf3 {[%clk 0:02:57.4]}
2... d5 {[%clk 0:02:49.7]} 3. e3 {[%clk 0:02:57.7]} 3... e6 {[%clk 0:02:46.9]}
4. Nc3 {[%clk 0:02:56.8]} 4... Nf6 {[%clk 0:02:45.4]} 5. b3 {[%clk 0:02:51.4]}
5... Bd6 {[%clk 0:02:40.4]} 6. Bb2 {[%clk 0:02:51.4]} 6... O-O {[%clk
0:02:38.7]} 7. Qc2 {[%clk 0:02:51.6]} 7... a6 {[%clk 0:02:27.1]} 8. d4 {[%clk
0:02:46.4]} 8... Nbd7 {[%clk 0:02:19.6]} 9. Bd3 {[%clk 0:02:46.1]} 9... e5
{[%clk 0:02:15.2]} 10. cxd5 {[%clk 0:02:44.1]} 10... cxd5 {[%clk 0:02:14.7]} 11.
dxe5 {[%clk 0:02:43.2]} 11... Nxe5 {[%clk 0:02:15.6]} 12. Nxe5 {[%clk 0:02:39]}
12... Bxe5 {[%clk 0:02:16.5]} 13. f4 {[%clk 0:02:21.3]} 13... Bd6 {[%clk
0:02:12.9]} 14. O-O {[%clk 0:02:20.4]} 14... Qb6 {[%clk 0:02:00.6]} 15. Kh1
{[%clk 0:02:15.5]} 15... Qxe3 {[%clk 0:01:53.2]} 16. Rae1 {[%clk 0:01:48.7]}
16... Qc5 {[%clk 0:01:33.7]} 17. Qd2 {[%clk 0:01:27.9]} 17... b5 {[%clk
0:01:15.6]} 18. Ne2 {[%clk 0:01:02.3]} 18... Ng4 {[%clk 0:01:07.3]} 19. Nd4
{[%clk 0:00:54.8]} 19... Bd7 {[%clk 0:00:44]} 20. h3 {[%clk 0:00:54.6]} 20...
Nf6 {[%clk 0:00:39.2]} 21. Bf5 {[%clk 0:00:49.6]} 21... Bxf5 {[%clk 0:00:35.7]}
22. Nxf5 {[%clk 0:00:49]} 22... Ne4 {[%clk 0:00:21.3]} 23. Qd3 {[%clk
0:00:44.9]} 23... Nf2+ {[%clk 0:00:17]} 24. Rxf2 {[%clk 0:00:44.7]} 24... Qxf2
{[%clk 0:00:17.9]} 25. Rf1 {[%clk 0:00:42]} 25... Qxb2 {[%clk 0:00:17.6]} 26.
Nxd6 {[%clk 0:00:38.8]} 26... Rad8 {[%clk 0:00:15.3]} 27. Nf5 {[%clk 0:00:38.3]}
27... Qf6 {[%clk 0:00:15.6]} 28. Re1 {[%clk 0:00:31.3]} 28... Rfe8 {[%clk
0:00:14.6]} 29. Rxe8+ {[%clk 0:00:30.8]} 29... Rxe8 {[%clk 0:00:15.5]} 30. Qxd5
{[%clk 0:00:31]} 30... g6 {[%clk 0:00:12.2]} 31. Nh6+ {[%clk 0:00:24.6]} 31...
Kg7 {[%clk 0:00:11.6]} 32. Ng4 {[%clk 0:00:13.4]} 32... Re1+ {[%clk 0:00:10.7]}
33. Kh2 {[%clk 0:00:13.6]} 33... Qxf4+ {[%clk 0:00:11.3]} 34. g3 {[%clk
0:00:14]} 34... Re2+ {[%clk 0:00:11.3]} 35. Kh1 {[%clk 0:00:14.1]} 35... Qc1+
{[%clk 0:00:11.3]} 0-1

[Event "*** Titled Tuesday Blitz"]
[Site "Chess.com"]
[Date "2020.10.20"]
[Round "8"]
[White "anon569"]
[Black "onetowin"]
[Result "1/2-1/2"]
[WhiteElo "2258"]
[BlackElo "2118"]
[TimeControl "180+1"]
[EndTime "11:36:50 PDT"]
[Termination "Game drawn by repetition"]

1. e4 {[%clk 0:03:00.9]} 1... c5 {[%clk 0:02:54]} 2. Nf3 {[%clk 0:02:59]} 2...
e6 {[%clk 0:02:52.6]} 3. d4 {[%clk 0:02:58.1]} 3... cxd4 {[%clk 0:02:53.5]} 4.
Nxd4 {[%clk 0:02:58]} 4... Nc6 {[%clk 0:02:54.2]} 5. Nb5 {[%clk 0:02:56.8]} 5...
Nf6 {[%clk 0:02:34.9]} 6. N1c3 {[%clk 0:02:35.9]} 6... a6 {[%clk 0:02:15.7]} 7.
Nd6+ {[%clk 0:02:27.2]} 7... Bxd6 {[%clk 0:02:15]} 8. Qxd6 {[%clk 0:02:27.3]}
8... Qe7 {[%clk 0:02:15.6]} 9. Qxe7+ {[%clk 0:02:22.1]} 9... Kxe7 {[%clk
0:02:16.5]} 10. Be3 {[%clk 0:02:15.3]} 10... b5 {[%clk 0:02:13]} 11. O-O-O
{[%clk 0:02:03.6]} 11... d6 {[%clk 0:02:04.3]} 12. f3 {[%clk 0:01:57.7]} 12...
Rd8 {[%clk 0:02:02.9]} 13. g4 {[%clk 0:01:49.9]} 13... b4 {[%clk 0:02:01.4]} 14.
Ne2 {[%clk 0:01:48.5]} 14... h6 {[%clk 0:01:59.8]} 15. h4 {[%clk 0:01:47.7]}
15... d5 {[%clk 0:01:55.7]} 16. g5 {[%clk 0:01:45]} 16... hxg5 {[%clk
0:01:48.8]} 17. hxg5 {[%clk 0:01:44.2]} 17... Ne8 {[%clk 0:01:47.5]} 18. Bc5+
{[%clk 0:01:43]} 18... Nd6 {[%clk 0:01:30.8]} 19. exd5 {[%clk 0:01:32.2]} 19...
exd5 {[%clk 0:01:31.7]} 20. Nf4 {[%clk 0:01:26.5]} 20... Be6 {[%clk 0:01:20.5]}
21. Nxd5+ {[%clk 0:01:24.8]} 21... Bxd5 {[%clk 0:01:20.5]} 22. Rxd5 {[%clk
0:01:24.7]} 22... Ke6 {[%clk 0:01:20.4]} 23. Rd2 {[%clk 0:01:17.5]} 23... Nb7
{[%clk 0:01:09.8]} 24. Bh3+ {[%clk 0:01:08.4]} 24... f5 {[%clk 0:01:03]} 25.
Re1+ {[%clk 0:01:00]} 25... Kf7 {[%clk 0:00:56.1]} 26. Bxf5 {[%clk 0:00:59.8]}
26... Nxc5 {[%clk 0:00:53.5]} 27. Rde2 {[%clk 0:00:45.1]} 27... g6 {[%clk
0:00:48.1]} 28. Bg4 {[%clk 0:00:37.1]} 28... Rd6 {[%clk 0:00:47.6]} 29. Rh1
{[%clk 0:00:34.2]} 29... Kg7 {[%clk 0:00:41.2]} 30. f4 {[%clk 0:00:20.5]} 30...
Rad8 {[%clk 0:00:39.2]} 31. Bf3 {[%clk 0:00:20]} 31... Nd4 {[%clk 0:00:38]} 32.
Re7+ {[%clk 0:00:18.4]} 32... Kf8 {[%clk 0:00:37]} 33. Rhh7 {[%clk 0:00:14.8]}
33... Nxf3 {[%clk 0:00:23.6]} 34. Rhf7+ {[%clk 0:00:13.4]} 34... Kg8 {[%clk
0:00:23.5]} 35. Rg7+ {[%clk 0:00:13.5]} 35... Kf8 {[%clk 0:00:23.9]} 36. Ref7+
{[%clk 0:00:13.4]} 36... Ke8 {[%clk 0:00:24.1]} 37. Re7+ {[%clk 0:00:14]} 37...
Kf8 {[%clk 0:00:24.5]} 38. Ref7+ {[%clk 0:00:14.6]} 38... Ke8 {[%clk 0:00:24.9]}
39. Re7+ {[%clk 0:00:14.8]} 39... Kf8 {[%clk 0:00:25.3]} 1/2-1/2

[Event "*** Titled Tuesday Blitz"]
[Site "Chess.com"]
[Date "2020.10.20"]
[Round "8"]
[White "BocharovD"]
[Black "MITerryble"]
[Result "0-1"]
[WhiteElo "2797"]
[BlackElo "2901"]
[TimeControl "180+1"]
[EndTime "11:36:51 PDT"]
[Termination "MITerryble won by resignation"]

1. c4 {[%clk 0:03:00.3]} 1... e5 {[%clk 0:02:59]} 2. d3 {[%clk 0:03:00.4]} 2...
Nc6 {[%clk 0:02:59.2]} 3. Nf3 {[%clk 0:03:00.2]} 3... f5 {[%clk 0:02:58.5]} 4.
g3 {[%clk 0:02:57.9]} 4... Nf6 {[%clk 0:02:58.4]} 5. Bg2 {[%clk 0:02:58]} 5...
g6 {[%clk 0:02:58.7]} 6. O-O {[%clk 0:02:57.4]} 6... Bg7 {[%clk 0:02:59.3]} 7.
Nc3 {[%clk 0:02:57.7]} 7... O-O {[%clk 0:02:59.6]} 8. Rb1 {[%clk 0:02:58.3]}
8... d6 {[%clk 0:02:58.3]} 9. b4 {[%clk 0:02:57.9]} 9... h6 {[%clk 0:02:58.5]}
10. b5 {[%clk 0:02:56.3]} 10... Ne7 {[%clk 0:02:58.9]} 11. c5 {[%clk 0:02:56.9]}
11... Be6 {[%clk 0:02:57.3]} 12. Ba3 {[%clk 0:02:54.2]} 12... Re8 {[%clk
0:02:42]} 13. Qa4 {[%clk 0:02:30.6]} 13... g5 {[%clk 0:02:30.2]} 14. Rfc1 {[%clk
0:02:27.1]} 14... Ng6 {[%clk 0:02:26.1]} 15. cxd6 {[%clk 0:02:25.3]} 15... cxd6
{[%clk 0:02:26.3]} 16. e4 {[%clk 0:01:50.2]} 16... f4 {[%clk 0:02:21.2]} 17. d4
{[%clk 0:01:50.5]} 17... g4 {[%clk 0:02:16]} 18. Nd2 {[%clk 0:01:50.3]} 18...
exd4 {[%clk 0:02:06.5]} 19. Qxd4 {[%clk 0:01:47.9]} 19... Nd5 {[%clk 0:01:51.8]}
20. Qd3 {[%clk 0:01:40.3]} 20... Nxc3 {[%clk 0:01:48.8]} 21. Rxc3 {[%clk
0:01:39.5]} 21... f3 {[%clk 0:01:39.3]} 22. Bf1 {[%clk 0:01:34]} 22... Bxc3
{[%clk 0:01:34.3]} 23. Qxc3 {[%clk 0:01:34.9]} 23... Ne5 {[%clk 0:01:20.6]} 24.
Qd4 {[%clk 0:01:35]} 24... Qb6 {[%clk 0:01:20.5]} 25. Qb2 {[%clk 0:01:17.4]}
25... Rac8 {[%clk 0:01:17.3]} 26. Bb4 {[%clk 0:01:16.6]} 26... a5 {[%clk
0:00:43.8]} 27. Bc3 {[%clk 0:01:02.6]} 27... Qc5 {[%clk 0:00:31.9]} 28. Rc1
{[%clk 0:01:01.9]} 28... a4 {[%clk 0:00:26.2]} 29. Qa1 {[%clk 0:01:00.4]} 29...
Qa3 {[%clk 0:00:21.6]} 30. Bb2 {[%clk 0:00:38.3]} 30... Qxa2 {[%clk 0:00:21.8]}
31. Rxc8 {[%clk 0:00:26.2]} 31... Rxc8 {[%clk 0:00:22.7]} 32. Bxe5 {[%clk
0:00:25.9]} 32... Qxa1 {[%clk 0:00:10.9]} 33. Bxa1 {[%clk 0:00:25.8]} 33... Rc2
{[%clk 0:00:11.4]} 0-1

[Event "*** Titled Tuesday Blitz"]
[Site "Chess.com"]
[Date "2020.10.20"]
[Round "8"]
[White "Savagelittlemole"]
[Black "PriSachu"]
[Result "1-0"]
[WhiteElo "2619"]
[BlackElo "2444"]
[TimeControl "180+1"]
[EndTime "11:36:52 PDT"]
[Termination "Savagelittlemole won by resignation"]

1. e4 {[%clk 0:03:00.9]} 1... e5 {[%clk 0:02:58.8]} 2. Nf3 {[%clk 0:03:00]} 2...
Nc6 {[%clk 0:02:58.6]} 3. Bb5 {[%clk 0:02:59.8]} 3... a6 {[%clk 0:02:58.3]} 4.
Ba4 {[%clk 0:03:00.1]} 4... Nf6 {[%clk 0:02:58.2]} 5. O-O {[%clk 0:03:00.3]}
5... Bc5 {[%clk 0:02:55.3]} 6. c3 {[%clk 0:02:59.5]} 6... O-O {[%clk 0:02:54.9]}
7. d4 {[%clk 0:02:59.2]} 7... Ba7 {[%clk 0:02:55]} 8. Re1 {[%clk 0:02:53.9]}
8... b5 {[%clk 0:02:52]} 9. Bc2 {[%clk 0:02:53.9]} 9... d6 {[%clk 0:02:51.5]}
10. h3 {[%clk 0:02:52]} 10... h6 {[%clk 0:02:50.9]} 11. a4 {[%clk 0:02:50.3]}
11... Bb7 {[%clk 0:02:40.4]} 12. Be3 {[%clk 0:02:44.2]} 12... exd4 {[%clk
0:02:08.5]} 13. Nxd4 {[%clk 0:02:31.8]} 13... Ne5 {[%clk 0:01:56.1]} 14. Nf5
{[%clk 0:02:19]} 14... Nc4 {[%clk 0:01:40.8]} 15. Bxa7 {[%clk 0:02:12.6]} 15...
Rxa7 {[%clk 0:01:40.2]} 16. axb5 {[%clk 0:02:12.6]} 16... Re8 {[%clk 0:01:37.2]}
17. b3 {[%clk 0:01:55.5]} 17... Ne5 {[%clk 0:01:32.2]} 18. Nd2 {[%clk
0:01:52.8]} 18... Qa8 {[%clk 0:01:28.1]} 19. bxa6 {[%clk 0:01:52.2]} 19... Rxa6
{[%clk 0:01:25.8]} 20. Rxa6 {[%clk 0:01:49.4]} 20... Qxa6 {[%clk 0:01:26.3]} 21.
Qa1 {[%clk 0:01:32.4]} 21... Qb6 {[%clk 0:01:24.9]} 22. Qa4 {[%clk 0:01:29]}
22... Ra8 {[%clk 0:01:01.3]} 23. Qd4 {[%clk 0:01:28.7]} 23... Ra2 {[%clk
0:01:01.2]} 24. Rc1 {[%clk 0:01:27.3]} 24... Qxd4 {[%clk 0:00:53.2]} 25. cxd4
{[%clk 0:01:28.2]} 25... Nd3 {[%clk 0:00:47.6]} 26. Bxd3 {[%clk 0:01:21.7]}
26... Rxd2 {[%clk 0:00:47.6]} 27. Rxc7 {[%clk 0:01:14.8]} 27... Bxe4 {[%clk
0:00:46.8]} 28. Bxe4 {[%clk 0:01:12.9]} 28... Nxe4 {[%clk 0:00:46.9]} 29. f3
{[%clk 0:01:12.7]} 29... Nf6 {[%clk 0:00:27.5]} 30. Nxd6 {[%clk 0:01:07.5]}
30... Rxd4 {[%clk 0:00:25.4]} 31. Rc8+ {[%clk 0:01:07.6]} 31... Kh7 {[%clk
0:00:25.1]} 32. Nxf7 {[%clk 0:01:07.8]} 32... Nd5 {[%clk 0:00:23.5]} 33. Kf2
{[%clk 0:00:53.4]} 33... Rd2+ {[%clk 0:00:22.9]} 34. Kg3 {[%clk 0:00:52.4]}
34... Ne3 {[%clk 0:00:21.9]} 35. Rh8+ {[%clk 0:00:50.2]} 35... Kg6 {[%clk
0:00:21.2]} 36. Ne5+ {[%clk 0:00:50.7]} 36... Kf5 {[%clk 0:00:20.6]} 37. f4
{[%clk 0:00:44.5]} 37... Ke4 {[%clk 0:00:16]} 38. Re8 {[%clk 0:00:39.9]} 38...
Rxg2+ {[%clk 0:00:15.8]} 39. Kh4 {[%clk 0:00:39.5]} 39... Nf5+ {[%clk
0:00:13.1]} 40. Kh5 {[%clk 0:00:38.6]} 40... Kxf4 {[%clk 0:00:07.5]} 41. Nd3+
{[%clk 0:00:35.7]} 41... Kf3 {[%clk 0:00:07.9]} 42. Ne1+ {[%clk 0:00:35.8]}
42... Kf2 {[%clk 0:00:05.8]} 43. Nxg2 {[%clk 0:00:36.7]} 43... Kxg2 {[%clk
0:00:05.8]} 44. Kg6 {[%clk 0:00:36.6]} 1-0

[Event "*** Titled Tuesday Blitz"]
[Site "Chess.com"]
[Date "2020.10.20"]
[Round "8"]
[White "Stalri"]
[Black "PLAYER_2006_M"]
[Result "1-0"]
[WhiteElo "2208"]
[BlackElo "2514"]
[TimeControl "180+1"]
[EndTime "11:36:52 PDT"]
[Termination "Stalri won by resignation"]

1. d4 {[%clk 0:02:36.4]} 1... Nf6 {[%clk 0:02:59.2]} 2. c4 {[%clk 0:02:32.1]}
2... e6 {[%clk 0:02:59.5]} 3. Nf3 {[%clk 0:02:30.8]} 3... c5 {[%clk 0:02:59.2]}
4. d5 {[%clk 0:02:30.7]} 4... exd5 {[%clk 0:02:59.5]} 5. cxd5 {[%clk 0:02:31.6]}
5... d6 {[%clk 0:03:00.2]} 6. Nc3 {[%clk 0:02:32.1]} 6... g6 {[%clk 0:03:00.3]}
7. Nd2 {[%clk 0:02:32.7]} 7... Bg7 {[%clk 0:02:56.5]} 8. e4 {[%clk 0:02:33.2]}
8... O-O {[%clk 0:02:56.1]} 9. Be2 {[%clk 0:02:33.8]} 9... Re8 {[%clk
0:02:55.9]} 10. O-O {[%clk 0:02:32.7]} 10... Na6 {[%clk 0:02:56.2]} 11. f3
{[%clk 0:02:28]} 11... Nc7 {[%clk 0:02:55.4]} 12. a4 {[%clk 0:02:28.5]} 12...
Nd7 {[%clk 0:02:52.4]} 13. Nc4 {[%clk 0:02:27]} 13... Ne5 {[%clk 0:02:52.3]} 14.
Ne3 {[%clk 0:02:27.2]} 14... h5 {[%clk 0:02:41.3]} 15. f4 {[%clk 0:02:25.1]}
15... Ng4 {[%clk 0:02:39.8]} 16. Nxg4 {[%clk 0:02:24.6]} 16... hxg4 {[%clk
0:02:40.4]} 17. Bxg4 {[%clk 0:02:24.9]} 17... Bxg4 {[%clk 0:02:41]} 18. Qxg4
{[%clk 0:02:25.6]} 18... Bxc3 {[%clk 0:02:41.5]} 19. bxc3 {[%clk 0:02:26.1]}
19... Rxe4 {[%clk 0:02:41.9]} 20. Kh1 {[%clk 0:02:18.9]} 20... Nxd5 {[%clk
0:02:39]} 21. c4 {[%clk 0:02:15.5]} 21... Ne3 {[%clk 0:01:57.3]} 22. Qf3 {[%clk
0:02:07.2]} 22... Qe7 {[%clk 0:01:54.5]} 23. Re1 {[%clk 0:01:59.9]} 23... Ng4
{[%clk 0:01:54.3]} 24. Bd2 {[%clk 0:01:50.5]} 24... f5 {[%clk 0:01:44.4]} 25. h3
{[%clk 0:01:38.8]} 25... Nf6 {[%clk 0:01:42]} 26. Bc3 {[%clk 0:01:38]} 26...
Rxe1+ {[%clk 0:01:40.9]} 27. Rxe1 {[%clk 0:01:37.5]} 27... Ne4 {[%clk
0:01:41.5]} 28. Bb2 {[%clk 0:01:31.1]} 28... Re8 {[%clk 0:01:36.8]} 29. Kh2
{[%clk 0:01:22]} 29... Qe6 {[%clk 0:01:32.3]} 30. Qd3 {[%clk 0:01:18.1]} 30...
Kf7 {[%clk 0:01:28.5]} 31. Ba1 {[%clk 0:01:16.1]} 31... b6 {[%clk 0:01:22]} 32.
a5 {[%clk 0:01:08.1]} 32... bxa5 {[%clk 0:01:13.6]} 33. Qb3 {[%clk 0:01:03.6]}
33... Re7 {[%clk 0:01:00.9]} 34. Qb8 {[%clk 0:00:57.2]} 34... Qxc4 {[%clk
0:00:57.5]} 35. Qh8 {[%clk 0:00:50.4]} 35... Qe6 {[%clk 0:00:54.5]} 36. Rb1
{[%clk 0:00:47.1]} 36... Qa2 {[%clk 0:00:22.7]} 37. Rb8 {[%clk 0:00:30.3]} 37...
Nc3 {[%clk 0:00:01.5]} 1-0

[Event "*** Titled Tuesday Blitz"]
[Site "Chess.com"]
[Date "2020.10.20"]
[Round "8"]
[White "Fins0905"]
[Black "Triumphmate"]
[Result "1-0"]
[WhiteElo "2627"]
[BlackElo "2421"]
[TimeControl "180+1"]
[EndTime "11:36:52 PDT"]
[Termination "Fins0905 won by checkmate"]

1. d4 {[%clk 0:03:00.9]} 1... Nf6 {[%clk 0:02:59.5]} 2. Nf3 {[%clk 0:02:59.4]}
2... e6 {[%clk 0:03:00.4]} 3. c4 {[%clk 0:02:57.4]} 3... d5 {[%clk 0:03:01.3]}
4. Bg5 {[%clk 0:02:56.4]} 4... Be7 {[%clk 0:02:57.5]} 5. e3 {[%clk 0:02:54.7]}
5... h6 {[%clk 0:02:54.9]} 6. Bh4 {[%clk 0:02:53.9]} 6... b6 {[%clk 0:02:51.3]}
7. Nc3 {[%clk 0:02:52.1]} 7... Bb7 {[%clk 0:02:50.2]} 8. cxd5 {[%clk 0:02:49.9]}
8... exd5 {[%clk 0:02:50]} 9. Bb5+ {[%clk 0:02:45.7]} 9... c6 {[%clk 0:02:49.7]}
10. Bd3 {[%clk 0:02:44.6]} 10... Nbd7 {[%clk 0:02:36.6]} 11. O-O {[%clk
0:02:34.3]} 11... Ne4 {[%clk 0:02:35.7]} 12. Bxe7 {[%clk 0:02:18.8]} 12... Qxe7
{[%clk 0:02:36.6]} 13. Qc2 {[%clk 0:02:18.4]} 13... f5 {[%clk 0:02:28.4]} 14.
Rab1 {[%clk 0:02:01]} 14... O-O {[%clk 0:02:26.5]} 15. b4 {[%clk 0:02:00.7]}
15... Rae8 {[%clk 0:02:21.3]} 16. Ne2 {[%clk 0:01:34.9]} 16... Qf6 {[%clk
0:02:08.8]} 17. a4 {[%clk 0:01:28.1]} 17... g5 {[%clk 0:01:50]} 18. a5 {[%clk
0:01:24.3]} 18... Rf7 {[%clk 0:01:22.6]} 19. axb6 {[%clk 0:01:06.3]} 19... axb6
{[%clk 0:01:22.4]} 20. Ra1 {[%clk 0:01:06.3]} 20... g4 {[%clk 0:01:19.1]} 21.
Nd2 {[%clk 0:01:04.2]} 21... Nf8 {[%clk 0:01:13.3]} 22. b5 {[%clk 0:00:45.9]}
22... c5 {[%clk 0:01:11.4]} 23. Bxe4 {[%clk 0:00:42.8]} 23... fxe4 {[%clk
0:00:51.5]} 24. dxc5 {[%clk 0:00:41.7]} 24... bxc5 {[%clk 0:00:44.1]} 25. Qxc5
{[%clk 0:00:42.6]} 25... Ne6 {[%clk 0:00:42.6]} 26. Qc3 {[%clk 0:00:31.9]} 26...
Qh4 {[%clk 0:00:37.3]} 27. Qe5 {[%clk 0:00:21.3]} 27... Ree7 {[%clk 0:00:20.1]}
28. Ra7 {[%clk 0:00:19.5]} 28... Ng5 {[%clk 0:00:18.6]} 29. Qg3 {[%clk
0:00:17.2]} 29... Qh5 {[%clk 0:00:18.7]} 30. Nf4 {[%clk 0:00:17.2]} 30... Rxf4
{[%clk 0:00:17.5]} 31. Qxf4 {[%clk 0:00:17.2]} 31... Rg7 {[%clk 0:00:16.3]} 32.
Qb8+ {[%clk 0:00:15.1]} 32... Kh7 {[%clk 0:00:15.3]} 33. Rxb7 {[%clk 0:00:15.5]}
33... Nf3+ {[%clk 0:00:15.8]} 34. gxf3 {[%clk 0:00:11.9]} 34... gxf3+ {[%clk
0:00:16]} 35. Rxg7+ {[%clk 0:00:12.3]} 35... Kxg7 {[%clk 0:00:15.9]} 36. Qg3+
{[%clk 0:00:12.2]} 36... Kf7 {[%clk 0:00:15.8]} 37. Rc1 {[%clk 0:00:12.1]} 37...
d4 {[%clk 0:00:15.2]} 38. Rc7+ {[%clk 0:00:11.7]} 38... Kf8 {[%clk 0:00:15.4]}
39. Qg7+ {[%clk 0:00:10.7]} 39... Ke8 {[%clk 0:00:15.3]} 40. Qe7# {[%clk
0:00:11.6]} 1-0

[Event "*** Titled Tuesday Blitz"]
[Site "Chess.com"]
[Date "2020.10.20"]
[Round "8"]
[White "GMaka"]
[Black "beto-betun"]
[Result "1-0"]
[WhiteElo "2371"]
[BlackElo "2199"]
[TimeControl "180+1"]
[EndTime "11:36:57 PDT"]
[Termination "GMaka won on time"]

1. d4 {[%clk 0:03:00.9]} 1... Nf6 {[%clk 0:02:59.7]} 2. Bg5 {[%clk 0:02:59.8]}
2... Ne4 {[%clk 0:02:58.1]} 3. Bf4 {[%clk 0:02:58.9]} 3... d5 {[%clk 0:02:57.8]}
4. e3 {[%clk 0:02:56.4]} 4... c5 {[%clk 0:02:54.1]} 5. Bd3 {[%clk 0:02:55.8]}
5... cxd4 {[%clk 0:02:50.6]} 6. Bxe4 {[%clk 0:02:52.1]} 6... dxe4 {[%clk
0:02:51.1]} 7. exd4 {[%clk 0:02:51.1]} 7... g6 {[%clk 0:02:33.2]} 8. Ne2 {[%clk
0:02:47.3]} 8... Bg7 {[%clk 0:02:32.3]} 9. c3 {[%clk 0:02:36.6]} 9... O-O {[%clk
0:02:29]} 10. O-O {[%clk 0:02:34]} 10... b6 {[%clk 0:02:21.1]} 11. Nd2 {[%clk
0:02:29.9]} 11... Bb7 {[%clk 0:02:18.3]} 12. a4 {[%clk 0:02:26.8]} 12... Nc6
{[%clk 0:02:13.8]} 13. Ng3 {[%clk 0:02:21.1]} 13... e5 {[%clk 0:02:06.7]} 14.
dxe5 {[%clk 0:02:19]} 14... Nxe5 {[%clk 0:02:07.4]} 15. Ndxe4 {[%clk 0:02:15.6]}
15... Qh4 {[%clk 0:01:35.6]} 16. Bg5 {[%clk 0:02:05.9]} 16... Qg4 {[%clk
0:01:32]} 17. Qxg4 {[%clk 0:01:59.6]} 17... Nxg4 {[%clk 0:01:32.7]} 18. f3
{[%clk 0:01:58]} 18... Ne5 {[%clk 0:01:30.7]} 19. Rfd1 {[%clk 0:01:44.6]} 19...
f6 {[%clk 0:01:22.2]} 20. Bf4 {[%clk 0:01:41.1]} 20... Rfd8 {[%clk 0:01:19.8]}
21. Bxe5 {[%clk 0:01:40.5]} 21... fxe5 {[%clk 0:01:20.3]} 22. Rxd8+ {[%clk
0:01:31.8]} 22... Rxd8 {[%clk 0:01:20]} 23. a5 {[%clk 0:01:32.7]} 23... Bh6
{[%clk 0:00:54.7]} 24. Kf2 {[%clk 0:01:29.6]} 24... b5 {[%clk 0:00:49.2]} 25. a6
{[%clk 0:01:27]} 25... Bc6 {[%clk 0:00:39.7]} 26. Ke2 {[%clk 0:01:26.3]} 26...
Bf4 {[%clk 0:00:34.9]} 27. b3 {[%clk 0:01:15.9]} 27... h5 {[%clk 0:00:32.4]} 28.
Rd1 {[%clk 0:01:02.4]} 28... Rxd1 {[%clk 0:00:28.5]} 29. Kxd1 {[%clk 0:01:03.3]}
29... h4 {[%clk 0:00:29.2]} 30. Nf1 {[%clk 0:00:59.4]} 30... Bxe4 {[%clk
0:00:24.8]} 31. fxe4 {[%clk 0:00:59.3]} 31... Kf7 {[%clk 0:00:24.7]} 32. g3
{[%clk 0:00:57.2]} 32... hxg3 {[%clk 0:00:24]} 33. hxg3 {[%clk 0:00:58.1]} 33...
Bg5 {[%clk 0:00:23.3]} 34. Kc2 {[%clk 0:00:57.3]} 34... Ke6 {[%clk 0:00:23.4]}
35. c4 {[%clk 0:00:42]} 35... bxc4 {[%clk 0:00:22.5]} 36. bxc4 {[%clk
0:00:42.5]} 36... Be7 {[%clk 0:00:18.2]} 37. Kb3 {[%clk 0:00:40.7]} 37... Bc5
{[%clk 0:00:17.3]} 38. Ka4 {[%clk 0:00:40.4]} 38... Kf6 {[%clk 0:00:16.3]} 39.
Kb5 {[%clk 0:00:40.5]} 39... Bf2 {[%clk 0:00:12.1]} 40. Kc6 {[%clk 0:00:39.8]}
40... Ke6 {[%clk 0:00:11.9]} 41. g4 {[%clk 0:00:36.6]} 41... g5 {[%clk
0:00:11.1]} 42. Nd2 {[%clk 0:00:36.5]} 42... Ke7 {[%clk 0:00:04.1]} 43. Kd5
{[%clk 0:00:35.4]} 43... Bd4 {[%clk 0:00:03]} 44. Nf3 {[%clk 0:00:35]} 44... Bb2
{[%clk 0:00:02.2]} 45. Nxg5 {[%clk 0:00:35.3]} 45... Kf6 {[%clk 0:00:01.5]} 46.
Nf3 {[%clk 0:00:36.2]} 1-0